bitfinex/quotes_BTCUSD_20240817
["timestamp","ask_amount","ask_price","bid_price","bid_amount"]
[1723867271634,0.56055709,59253.0,59252.0,0.04305664]
[1723867274058,0.72283158,59253.0,59252.0,0.04305664]
[1723867275277,0.56055709,59253.0,59252.0,0.04305664]
[1723867276685,0.88688509,59253.0,59252.0,0.04305664]
[1723867276894,1.24089449,59253.0,59252.0,0.04305664]
[1723867277602,1.51092249,59253.0,59252.0,0.04305664]
[1723867277807,1.21089449,59253.0,59252.0,0.04305664]
[1723867278015,1.26375685,59253.0,59252.0,0.04305664]
[1723867278209,1.29375685,59253.0,59252.0,0.04305664]
[1723867279030,1.50876553,59253.0,59252.0,0.04305664]
[1723867279230,1.89141432,59253.0,59252.0,0.04305664]
[1723867279532,0.03,59244.0,59241.0,0.1]
[1723867279734,0.07584424,59242.0,59240.0,0.1639]
[1723867279935,0.01343149,59241.0,59240.0,0.1639]
[1723867280152,0.11555633,59241.0,59240.0,0.1]
[1723867280379,0.3872641,59241.0,59240.0,0.1]
[1723867280588,0.59957417,59241.0,59240.0,0.1]
[1723867281384,0.59192183,59241.0,59240.0,0.1]
[1723867281557,0.59192183,59241.0,59239.0,0.0009064]
[1723867281558,0.136043,59240.0,59239.0,0.0009064]
[1723867281757,0.30440505,59240.0,59239.0,0.0009064]
[1723867281976,0.44125363,59240.0,59239.0,0.0009064]
[1723867282161,0.30640505,59240.0,59239.0,0.0009064]
[1723867282577,0.40748101,59240.0,59239.0,0.0009064]
[1723867282788,0.40448101,59240.0,59239.0,0.0009064]
[1723867282987,0.40548101,59240.0,59239.0,0.0089064]
[1723867283148,0.54113448,59240.0,59239.0,0.0169064]
[1723867283350,0.72164592,59240.0,59239.0,0.0169064]
[1723867283507,0.61956996,59240.0,59239.0,0.0009064]
[1723867283709,0.61956996,59240.0,59239.0,0.0099064]
[1723867284364,0.85516825,59240.0,59239.0,0.0099064]
[1723867285363,0.75409229,59240.0,59239.0,0.0099064]
[1723867285770,0.62243882,59240.0,59239.0,0.0099064]
[1723867285980,0.48439582,59240.0,59239.0,0.0099064]
[1723867286178,0.27066866,59240.0,59239.0,0.0099064]
[1723867286631,0.01440502,59240.0,59239.0,0.0099064]
[1723867286835,0.09015722,59240.0,59239.0,0.0099064]
[1723867287388,0.01440502,59240.0,59239.0,0.0099064]
[1723867288198,0.05048174,59240.0,59239.0,0.0099064]
[1723867288579,0.06674975,59240.0,59239.0,0.0099064]
[1723867289504,0.01626801,59240.0,59239.0,0.0099064]
[1723867289789,0.06674975,59240.0,59239.0,0.0099064]
[1723867290217,0.06673401,59240.0,59239.0,0.0099064]
[1723867290616,0.01626801,59240.0,59239.0,0.0099064]
[1723867293647,0.01626801,59240.0,59239.0,0.1485064]
[1723867294049,0.16840275,59242.0,59239.0,0.1485064]
[1723867294459,0.01898644,59241.0,59239.0,0.1485064]
[1723867295198,0.01898644,59241.0,59239.0,0.1395064]
[1723867295435,0.01898644,59241.0,59239.0,0.1445064]
[1723867295573,0.01898644,59241.0,59239.0,0.1425064]
[1723867295768,0.01898644,59241.0,59239.0,0.1395064]
[1723867295974,0.01898644,59241.0,59239.0,0.1435064]
[1723867296175,0.01898644,59241.0,59239.0,0.1475064]
[1723867300199,0.06943748,59241.0,59239.0,0.1475064]
[1723867301824,0.06943748,59241.0,59239.0,0.0855064]
[1723867302181,0.06943748,59241.0,59240.0,0.1386]
[1723867302671,0.01898644,59241.0,59240.0,0.1386]
[1723867302948,0.01981144,59241.0,59240.0,0.1386]
[1723867303523,0.09550241,59241.0,59240.0,0.1386]
[1723867303722,0.09550241,59241.0,59240.0,0.1426]
[1723867303723,0.09558043,59241.0,59240.0,0.1426]
[1723867304509,0.01981144,59241.0,59240.0,0.1426]
[1723867305156,0.01981144,59241.0,59240.0,0.1466]
[1723867308400,0.01981144,59241.0,59240.0,0.07]
[1723867309453,0.14625341,59241.0,59240.0,0.07]
[1723867309654,0.59465856,59241.0,59240.0,0.07]
[1723867310020,0.43362657,59241.0,59240.0,0.07]
[1723867310223,0.3071846,59241.0,59240.0,0.07]
[1723867312020,0.3101846,59241.0,59240.0,0.07]
[1723867312923,0.47010001,59241.0,59240.0,0.07]
[1723867314782,0.47010001,59241.0,59240.0,0.008]
[1723867315933,0.46710001,59241.0,59240.0,0.008]
[1723867316341,0.46710001,59241.0,59240.0,0.0089075]
[1723867317360,0.59177382,59241.0,59240.0,0.0089075]
[1723867317701,0.5920907,59241.0,59240.0,0.0089075]
[1723867318389,0.74399111,59241.0,59240.0,0.0089075]
[1723867318699,0.6193173,59241.0,59240.0,0.0089075]
[1723867320087,1.0244413,59241.0,59240.0,0.0089075]
[1723867320324,0.95204089,59241.0,59240.0,0.0089075]
[1723867320657,1.31953348,59241.0,59240.0,0.0089075]
[1723867320859,1.23932517,59241.0,59240.0,0.0089075]
[1723867321065,1.23932517,59241.0,59240.0,0.0049075]
[1723867321265,1.2526625,59241.0,59240.0,0.0049075]
[1723867321512,1.2536625,59241.0,59240.0,0.0009075]
[1723867321734,1.2536625,59241.0,59240.0,0.1435075]
[1723867322025,0.9825795,59241.0,59240.0,0.1435075]
[1723867322167,0.8485385,59241.0,59240.0,0.1435075]
[1723867322372,0.47419612,59241.0,59240.0,0.1435075]
[1723867323066,0.47519612,59241.0,59240.0,0.1435075]
[1723867323237,0.47419612,59241.0,59240.0,0.1435075]
[1723867323658,0.47519612,59241.0,59240.0,0.1435075]
[1723867328442,0.61023712,59241.0,59240.0,0.1435075]
[1723867328774,0.78122402,59241.0,59240.0,0.0009075]
[1723867328976,0.67126865,59241.0,59240.0,0.0009075]
[1723867329181,0.85186475,59241.0,59240.0,0.0009075]
[1723867329397,1.00932193,59241.0,59240.0,0.0009075]
[1723867329987,1.60478793,59241.0,59240.0,0.0009075]
[1723867330132,0.906617,59240.0,59239.0,0.00016111]
[1723867330332,2.0167785,59240.0,59239.0,0.00016111]
[1723867330561,2.19522521,59240.0,59239.0,0.00016111]
[1723867332151,2.20922521,59240.0,59239.0,0.00116111]
[1723867332903,2.22322521,59240.0,59239.0,0.00116111]
[1723867333083,2.20922521,59240.0,59239.0,0.00116111]
[1723867333309,2.19522521,59240.0,59239.0,0.00016111]
[1723867333521,2.20922521,59240.0,59239.0,0.00016111]
[1723867333726,2.12352521,59240.0,59239.0,0.00016111]
[1723867333953,2.12752521,59240.0,59239.0,0.00016111]
[1723867334167,2.11452521,59240.0,59239.0,0.00016111]
[1723867334592,2.12752521,59240.0,59239.0,0.00016111]
[1723867335122,2.22222521,59240.0,59239.0,0.00016111]
[1723867338317,2.0464675,59240.0,59239.0,0.00016111]
[1723867338489,2.04413251,59240.0,59239.0,0.00016111]
[1723867338696,1.96094848,59240.0,59239.0,0.00016111]
[1723867340104,0.435165,59235.0,59234.0,0.0635]
[1723867340310,0.96032873,59235.0,59234.0,0.0635]
[1723867340468,1.33823315,59235.0,59234.0,0.0635]
[1723867341345,1.34623315,59235.0,59234.0,0.0635]
[1723867341569,1.35423315,59235.0,59234.0,0.0635]
[1723867341930,1.50606638,59235.0,59234.0,0.0635]
[1723867343425,1.50870902,59235.0,59234.0,0.0635]
[1723867343822,1.14834961,59235.0,59234.0,0.0635]
[1723867344246,1.41845961,59235.0,59234.0,0.0635]
[1723867344766,1.14834961,59235.0,59234.0,0.0635]
[1723867344972,0.46665973,59235.0,59234.0,0.274557]
[1723867345174,0.46665973,59235.0,59234.0,0.64487517]
[1723867345382,0.46665973,59235.0,59234.0,0.91499017]
[1723867345383,0.03489339,59235.0,59234.0,0.91499017]
[1723867345801,0.03489339,59235.0,59234.0,1.37965971]
[1723867345978,0.016,59235.0,59234.0,1.37965971]
[1723867346180,0.008,59235.0,59234.0,1.37965971]
[1723867346439,0.05142612,59241.0,59240.0,0.812717]
[1723867346440,0.000825,59241.0,59240.0,0.812717]
[1723867346646,0.01968441,59241.0,59240.0,0.909717]
[1723867346879,0.000825,59241.0,59240.0,0.90992017]
[1723867347716,0.000825,59241.0,59240.0,0.91092017]
[1723867348120,0.000825,59241.0,59240.0,0.91492017]
[1723867348403,0.04371168,59242.0,59241.0,0.544624]
[1723867348530,0.04371168,59242.0,59241.0,0.644624]
[1723867348732,0.06257386,59242.0,59241.0,0.644624]
[1723867349335,0.01886218,59242.0,59241.0,0.644624]
[1723867349734,0.07590169,59244.0,59243.0,0.540911]
[1723867350948,0.07590169,59244.0,59243.0,0.541911]
[1723867351349,0.07590169,59245.0,59244.0,0.270834]
[1723867352197,0.07584642,59245.0,59244.0,0.270834]
[1723867352400,0.07584642,59245.0,59244.0,0.1358]
[1723867352619,0.2851607,59245.0,59244.0,0.1358]
[1723867353143,0.38628451,59245.0,59244.0,0.1358]
[1723867353590,0.38627908,59245.0,59244.0,0.1358]
[1723867354009,0.4115714,59245.0,59244.0,0.1358]
[1723867354210,0.38627899,59245.0,59244.0,0.1358]
[1723867356599,0.38548967,59245.0,59244.0,0.1358]
[1723867357015,0.1011083,59245.0,59244.0,0.1358]
[1723867358406,0.38548967,59245.0,59244.0,0.1358]
[1723867362502,0.3850229,59245.0,59244.0,0.1358]
[1723867362696,0.10108873,59245.0,59244.0,0.1358]
[1723867364391,0.3850229,59245.0,59244.0,0.1358]
[1723867364632,0.10108873,59245.0,59244.0,0.1358]
[1723867365044,0.11997231,59245.0,59244.0,0.1358]
[1723867365183,0.01888358,59245.0,59244.0,0.1358]
[1723867366015,0.40419484,59245.0,59244.0,0.1358]
[1723867366428,0.01888358,59245.0,59244.0,0.1358]
[1723867368557,0.09468957,59245.0,59244.0,0.1358]
[1723867369856,0.01888358,59245.0,59244.0,0.81117517]
[1723867370055,0.01888358,59245.0,59244.0,0.91117517]
[1723867370458,0.05053205,59248.0,59247.0,0.135027]
[1723867370638,0.0694226,59248.0,59247.0,0.276927]
[1723867370841,0.01889055,59248.0,59247.0,0.276927]
[1723867371468,0.01889055,59248.0,59247.0,0.1419]
[1723867371640,0.06941668,59248.0,59247.0,0.1419]
[1723867372477,0.06941668,59248.0,59247.0,0.1439]
[1723867373478,0.06941668,59248.0,59247.0,0.1459]
[1723867374029,0.01889055,59248.0,59247.0,0.1459]
[1723867374479,0.12468863,59248.0,59247.0,0.004]
[1723867374860,0.12466706,59248.0,59247.0,0.004]
[1723867375066,0.2446259,59248.0,59247.0,0.004]
[1723867375272,0.52987884,59248.0,59247.0,0.004]
[1723867375861,0.52987884,59248.0,59247.0,0.821037]
[1723867375862,0.40517884,59248.0,59247.0,0.821037]
[1723867376063,0.01889055,59248.0,59247.0,1.19129517]
[1723867376260,0.000825,59253.0,59252.0,0.405049]
[1723867376488,0.01975696,59253.0,59252.0,0.816982]
[1723867376837,0.000825,59253.0,59252.0,0.81718517]
[1723867378271,0.001825,59253.0,59252.0,0.82018517]
[1723867378476,0.002825,59253.0,59252.0,0.82718517]
[1723867378939,0.001825,59253.0,59252.0,0.82018517]
[1723867379336,0.002825,59253.0,59252.0,1.09921817]
[1723867379537,0.001825,59253.0,59252.0,1.09621817]
[1723867379964,0.002825,59253.0,59252.0,1.10321817]
[1723867380165,0.001825,59253.0,59252.0,1.09621817]
[1723867380602,0.001825,59253.0,59252.0,1.09421817]
[1723867380743,0.002825,59253.0,59252.0,1.19791817]
[1723867380943,0.001825,59253.0,59252.0,1.31391817]
[1723867381198,0.002825,59253.0,59252.0,1.31191817]
[1723867381530,0.001825,59253.0,59252.0,1.31191817]
[1723867381736,0.001825,59253.0,59252.0,1.32091817]
[1723867381737,0.002825,59253.0,59252.0,1.32091817]
[1723867382183,0.001825,59253.0,59252.0,1.31191817]
[1723867382393,0.001825,59253.0,59252.0,1.48347271]
[1723867382815,0.000825,59253.0,59252.0,1.47647271]
[1723867383014,0.002825,59253.0,59252.0,1.49047271]
[1723867385476,0.000824,59261.0,59260.0,1.08708917]
[1723867385674,0.000824,59261.0,59260.0,1.28164371]
[1723867385881,0.000824,59261.0,59260.0,1.65163971]
[1723867386087,0.000824,59261.0,59260.0,1.67377265]
[1723867386330,0.000824,59261.0,59260.0,1.65163971]
[1723867386951,0.001824,59261.0,59260.0,1.65663971]
[1723867387268,0.000824,59261.0,59260.0,1.65163971]
[1723867387474,0.000824,59261.0,59260.0,1.65663971]
[1723867387660,0.001824,59261.0,59260.0,1.89803971]
[1723867387862,0.001824,59261.0,59260.0,1.89303971]
[1723867388142,0.001824,59261.0,59260.0,1.90317543]
[1723867388347,0.001824,59261.0,59260.0,1.91717543]
[1723867388666,0.001824,59261.0,59260.0,1.90317543]
[1723867388876,0.000824,59261.0,59260.0,1.89817543]
[1723867389086,0.000824,59261.0,59260.0,1.91217543]
[1723867389416,0.001824,59261.0,59260.0,1.92617543]
[1723867389624,0.000824,59261.0,59260.0,1.91217543]
[1723867390026,0.001824,59261.0,59260.0,1.92617543]
[1723867390249,0.001824,59261.0,59260.0,1.91217543]
[1723867390637,0.000824,59261.0,59260.0,1.91217543]
[1723867391161,0.001824,59261.0,59260.0,1.92617543]
[1723867392025,0.001824,59261.0,59260.0,1.94599543]
[1723867392186,0.001824,59261.0,59260.0,1.95999543]
[1723867392815,0.000824,59261.0,59260.0,1.94599543]
[1723867393027,0.000824,59261.0,59260.0,1.95999543]
[1723867393233,0.001824,59261.0,59260.0,1.95999543]
[1723867393369,0.000824,59261.0,59260.0,1.94599543]
[1723867393573,0.001824,59261.0,59260.0,1.94599543]
[1723867393997,0.001824,59261.0,59260.0,1.95999543]
[1723867402038,0.001824,59261.0,59260.0,2.50098743]
[1723867402241,0.1,59265.0,59264.0,1.01052617]
[1723867402459,0.1,59265.0,59264.0,1.28788071]
[1723867402663,0.1,59265.0,59264.0,1.92983671]
[1723867402860,0.1,59265.0,59264.0,1.95194983]
[1723867403077,0.1,59265.0,59264.0,1.98576983]
[1723867403467,0.1,59265.0,59264.0,1.99976983]
[1723867403806,0.101,59265.0,59264.0,2.01376983]
[1723867404011,0.101,59265.0,59264.0,1.98576983]
[1723867404012,0.1,59265.0,59264.0,1.98576983]
[1723867404275,0.1,59265.0,59264.0,1.99976983]
[1723867404643,0.1,59265.0,59264.0,1.98576983]
[1723867406140,0.1,59265.0,59264.0,1.99976983]
[1723867406363,0.1,59265.0,59264.0,1.98576983]
[1723867406575,0.1,59265.0,59264.0,1.99976983]
[1723867407250,0.1,59265.0,59264.0,2.01376983]
[1723867407820,0.1,59265.0,59264.0,1.99976983]
[1723867407976,0.1,59265.0,59264.0,2.01376983]
[1723867409391,0.1,59265.0,59264.0,1.99976983]
[1723867409544,0.1,59265.0,59264.0,2.01376983]
[1723867409730,0.1,59265.0,59264.0,1.99976983]
[1723867409932,0.1,59265.0,59264.0,2.01376983]
[1723867410596,0.1,59265.0,59264.0,1.99165671]
[1723867410854,0.00824,59270.0,59269.0,0.23770017]
[1723867411034,0.00824,59270.0,59269.0,0.78518308]
[1723867411188,0.00824,59270.0,59269.0,0.88718308]
[1723867412165,0.00824,59270.0,59269.0,2.22550923]
[1723867412772,0.00824,59270.0,59269.0,2.23550923]
[1723867413261,0.00824,59270.0,59269.0,2.24950923]
[1723867414011,0.00824,59270.0,59269.0,2.25350923]
[1723867414858,0.00824,59270.0,59269.0,2.24950923]
[1723867415922,0.00824,59270.0,59269.0,1.97955423]
[1723867416744,0.00824,59270.0,59269.0,1.98155423]
[1723867416962,0.00824,59270.0,59269.0,1.98355423]
[1723867417570,0.00824,59270.0,59269.0,2.25350923]
[1723867418132,0.00824,59270.0,59269.0,2.26351656]
[1723867420396,0.00824,59270.0,59269.0,2.25951656]
[1723867423364,0.00824,59270.0,59269.0,2.26351656]
[1723867424518,0.00824,59270.0,59269.0,2.25951656]
[1723867425079,0.00824,59270.0,59269.0,2.25614319]
[1723867426940,0.00824,59270.0,59269.0,1.98518819]
[1723867427142,0.00824,59270.0,59269.0,1.27671319]
[1723867427315,0.00824,59270.0,59269.0,1.25460704]
[1723867428139,0.00824,59270.0,59269.0,1.24060704]
[1723867428316,0.00824,59270.0,59269.0,1.26360704]
[1723867428533,0.00824,59270.0,59269.0,1.27760704]
[1723867428935,0.00824,59270.0,59269.0,1.28571319]
[1723867429132,0.00824,59270.0,59269.0,1.26360704]
[1723867429626,0.00824,59270.0,59269.0,1.29971319]
[1723867429814,0.00824,59270.0,59269.0,1.24960704]
[1723867430030,0.00824,59270.0,59269.0,1.27760704]
[1723867430195,0.00824,59270.0,59269.0,1.29971511]
[1723867431883,0.14584,59270.0,59269.0,1.29971511]
[1723867432061,0.08974,59270.0,59269.0,1.29971511]
[1723867434044,0.08974,59270.0,59269.0,1.29971853]
[1723867434889,0.08974,59270.0,59269.0,1.27760704]
[1723867436075,0.08974,59270.0,59269.0,1.29971853]
[1723867436306,0.08974,59270.0,59269.0,1.27760704]
[1723867437283,0.08974,59270.0,59269.0,1.29971853]
[1723867437470,0.08974,59270.0,59269.0,1.27760704]
[1723867439998,0.14584,59270.0,59269.0,0.70309017]
[1723867440662,0.16037313,59270.0,59269.0,0.70309017]
[1723867440877,0.16037313,59270.0,59269.0,0.67509017]
[1723867441302,0.16037313,59270.0,59269.0,0.70309017]
[1723867441510,0.16037313,59270.0,59269.0,0.532932]
[1723867441719,0.16037313,59270.0,59269.0,0.014]
[1723867442153,0.21094377,59270.0,59269.0,0.028]
[1723867442369,0.16037313,59270.0,59269.0,0.028]
[1723867442979,0.16037313,59270.0,59269.0,0.128]
[1723867443186,0.16037313,59270.0,59269.0,0.028]
[1723867443387,0.16037313,59270.0,59269.0,0.128]
[1723867443738,0.16037313,59270.0,59269.0,0.262977]
[1723867443948,0.16037313,59270.0,59269.0,0.128]
[1723867444145,0.16037313,59270.0,59269.0,0.262977]
[1723867444954,0.16037313,59270.0,59269.0,0.128]
[1723867445163,0.16037313,59270.0,59269.0,0.028]
[1723867445462,0.23616106,59270.0,59269.0,0.028]
[1723867446471,0.16037313,59270.0,59269.0,0.028]
[1723867446621,0.16037313,59270.0,59269.0,0.128]
[1723867447434,0.16037313,59270.0,59269.0,0.028]
[1723867447435,0.21087259,59270.0,59269.0,0.028]
[1723867447666,0.74809593,59270.0,59269.0,0.028]
[1723867447954,1.06732303,59270.0,59269.0,0.028]
[1723867448157,0.94095869,59270.0,59269.0,0.028]
[1723867448428,1.06717098,59270.0,59269.0,0.028]
[1723867448628,1.06917098,59270.0,59269.0,0.028]
[1723867449035,1.06917098,59270.0,59269.0,0.014]
[1723867449482,0.94295869,59270.0,59269.0,0.01]
[1723867449692,0.85825336,59270.0,59269.0,0.02]
[1723867450101,0.98446565,59270.0,59269.0,0.02]
[1723867450325,1.08537407,59270.0,59269.0,0.02]
[1723867450605,0.95916178,59270.0,59269.0,0.02]
[1723867451629,0.85825336,59270.0,59269.0,0.02]
[1723867451838,1.12820436,59270.0,59269.0,0.02]
[1723867452039,1.22911278,59270.0,59269.0,0.02]
[1723867452461,0.91089399,59270.0,59269.0,0.02]
[1723867453308,0.91089131,59270.0,59269.0,0.02]
[1723867453517,0.88566912,59270.0,59269.0,0.02]
[1723867453684,0.83525013,59270.0,59269.0,0.02]
[1723867453892,0.88566842,59270.0,59269.0,0.02]
[1723867454100,0.91089131,59270.0,59269.0,0.02]
[1723867454454,0.83525013,59270.0,59269.0,0.02]
[1723867455303,0.88565508,59270.0,59269.0,0.02]
[1723867455915,0.99972273,59270.0,59269.0,0.02]
[1723867456265,0.88565508,59270.0,59269.0,0.02]
[1723867456447,0.83525013,59270.0,59269.0,0.02]
[1723867456652,0.88565508,59270.0,59269.0,0.02]
[1723867456963,0.83525013,59270.0,59269.0,0.02]
[1723867457371,0.88565508,59270.0,59269.0,0.02]
[1723867457781,0.83525013,59270.0,59269.0,0.02]
[1723867458612,0.93578976,59270.0,59269.0,0.02]
[1723867459107,0.93678976,59270.0,59269.0,0.02]
[1723867460519,0.93758659,59270.0,59269.0,0.02]
[1723867460766,0.93858659,59270.0,59269.0,0.02]
[1723867461199,0.88844311,59270.0,59269.0,0.02]
[1723867461401,0.88644311,59270.0,59269.0,0.02]
[1723867462261,0.88643786,59270.0,59269.0,0.02]
[1723867462614,0.88643896,59270.0,59269.0,0.02]
[1723867463561,0.83604696,59270.0,59269.0,0.02]
[1723867463956,0.93064696,59270.0,59269.0,0.02]
[1723867464401,0.71029305,59270.0,59269.0,0.02]
[1723867465219,0.61569305,59270.0,59269.0,0.02]
[1723867465430,0.56529913,59270.0,59269.0,0.02]
[1723867465631,0.61569305,59270.0,59269.0,0.02]
[1723867465831,0.56529913,59270.0,59269.0,0.02]
[1723867467439,0.64091344,59270.0,59269.0,0.02]
[1723867468746,0.64094079,59270.0,59269.0,0.02]
[1723867469304,0.56529913,59270.0,59269.0,0.02]
[1723867469734,0.64094143,59270.0,59269.0,0.02]
[1723867471154,0.64094261,59270.0,59269.0,0.02]
[1723867471352,0.95600178,59270.0,59269.0,0.02]
[1723867471755,0.56529913,59270.0,59269.0,0.02]
[1723867471955,0.95612794,59270.0,59269.0,0.02]
[1723867472157,0.07321148,59270.0,59269.0,0.21878017]
[1723867472419,0.02277313,59270.0,59269.0,0.66473517]
[1723867472844,0.00824,59270.0,59269.0,0.66473517]
[1723867473286,0.00824,59270.0,59269.0,0.57013517]
[1723867477347,0.00803692,59270.0,59269.0,0.57013517]
[1723867478845,0.00803692,59270.0,59269.0,0.30018017]
[1723867479439,0.03514597,59270.0,59269.0,0.30018017]
[1723867482466,0.03514597,59270.0,59269.0,0.84009017]
[1723867483044,0.00803692,59270.0,59269.0,0.94009017]
[1723867485283,0.03515698,59270.0,59269.0,0.94009017]
[1723867485489,0.03515698,59270.0,59269.0,0.67013517]
[1723867486576,0.08571564,59270.0,59269.0,0.68051775]
[1723867489829,0.08571564,59270.0,59269.0,0.318577]
[1723867490053,0.03515698,59270.0,59269.0,0.1836]
[1723867490278,0.11102126,59270.0,59269.0,0.0836]
[1723867490697,0.30715652,59270.0,59269.0,0.02]
[1723867490935,0.57710752,59270.0,59269.0,0.02]
[1723867491135,0.56722071,59270.0,59269.0,0.02]
[1723867493035,1.23972271,59270.0,59269.0,0.02]
[1723867493241,1.13960538,59270.0,59269.0,0.02]
[1723867493411,1.13860538,59270.0,59269.0,0.02]
[1723867493780,1.13323793,59270.0,59269.0,0.02]
[1723867494085,1.28440789,59270.0,59269.0,0.0209064]
[1723867494289,1.65384721,59270.0,59269.0,0.0209064]
[1723867494676,1.50167725,59270.0,59269.0,0.0209064]
[1723867494878,1.13223793,59270.0,59269.0,0.0209064]
[1723867496484,1.50167725,59270.0,59269.0,0.0209064]
[1723867497567,1.13223793,59270.0,59269.0,0.0209064]
[1723867497972,1.13119781,59270.0,59269.0,0.0209064]
[1723867500357,1.30675235,59270.0,59269.0,0.0209064]
[1723867500580,1.9458374,59270.0,59269.0,0.0209064]
[1723867501941,1.9458374,59270.0,59266.0,0.0009064]
[1723867501942,0.94967083,59267.0,59266.0,0.0009064]
[1723867502142,1.73539866,59267.0,59266.0,0.0009064]
[1723867502339,1.73539866,59267.0,59253.0,0.0009064]
[1723867502340,0.435034,59254.0,59253.0,0.0009064]
[1723867502689,1.08822083,59254.0,59253.0,0.0009064]
[1723867502878,1.10662083,59254.0,59253.0,0.0009064]
[1723867503713,1.10662083,59254.0,59253.0,0.0059064]
[1723867503896,1.10662083,59254.0,59253.0,0.0109064]
[1723867503897,1.24040636,59254.0,59253.0,0.0109064]
[1723867505509,1.22901141,59254.0,59253.0,0.0109064]
[1723867507502,1.35524965,59254.0,59253.0,0.0109064]
[1723867509404,1.22901141,59254.0,59253.0,0.0109064]
[1723867509947,1.22866794,59254.0,59253.0,0.0109064]
[1723867510365,1.32961256,59254.0,59253.0,0.0109064]
[1723867512431,1.32946707,59254.0,59253.0,0.0109064]
[1723867513513,0.95184253,59254.0,59253.0,0.0109064]
[1723867514450,1.02750135,59254.0,59253.0,0.0109064]
[1723867515417,0.89371582,59254.0,59253.0,0.0109064]
[1723867517441,0.818057,59254.0,59253.0,0.0109064]
[1723867518102,1.23077683,59254.0,59253.0,0.0109064]
[1723867518738,1.50636305,59254.0,59253.0,0.0109064]
[1723867518946,1.23077683,59254.0,59253.0,0.0109064]
[1723867519163,1.40233137,59254.0,59253.0,0.0109064]
[1723867519586,1.47794866,59254.0,59253.0,0.0109064]
[1723867520652,1.47794723,59254.0,59253.0,0.0109064]
[1723867521191,1.40233137,59254.0,59253.0,0.0109064]
[1723867521391,1.47794836,59254.0,59253.0,0.0109064]
[1723867521615,1.15089699,59254.0,59253.0,0.0109064]
[1723867521818,0.89367399,59254.0,59253.0,0.0746064]
[1723867522023,0.818057,59254.0,59253.0,0.0746064]
[1723867522600,0.86846631,59254.0,59253.0,0.0746064]
[1723867522776,0.77386631,59254.0,59253.0,0.0746064]
[1723867523027,0.818057,59254.0,59253.0,0.0746064]
[1723867524036,0.86846892,59254.0,59253.0,0.0746064]
[1723867525572,0.87146892,59254.0,59253.0,0.0109064]
[1723867525777,1.39486924,59254.0,59253.0,0.0109064]
[1723867526129,1.58878278,59254.0,59253.0,0.0109064]
[1723867526454,1.68960662,59254.0,59253.0,0.0109064]
[1723867527712,0.278011,59254.0,59253.0,0.1534064]
[1723867528030,0.32844105,59254.0,59253.0,0.1534064]
[1723867529598,0.278011,59254.0,59253.0,0.1534064]
[1723867530380,0.35365622,59254.0,59253.0,0.1534064]
[1723867532230,0.72639932,59254.0,59253.0,0.1534064]
[1723867532434,0.65069465,59254.0,59253.0,0.1534064]
[1723867534396,0.67592955,59254.0,59253.0,0.1534064]
[1723867535374,0.54975509,59254.0,59253.0,0.1534064]
[1723867535984,0.81977809,59254.0,59253.0,0.1534064]
[1723867536381,0.81977809,59254.0,59253.0,0.0109064]
[1723867536880,0.82019838,59254.0,59253.0,0.0109064]
[1723867537881,1.44354121,59254.0,59253.0,0.0109064]
[1723867538103,1.59519561,59254.0,59253.0,0.0109064]
[1723867538301,1.79382556,59254.0,59253.0,0.0109064]
[1723867538497,1.9653801,59254.0,59253.0,0.0109064]
[1723867538905,1.96358327,59254.0,59253.0,0.0109064]
[1723867539100,1.88208327,59254.0,59253.0,0.0109064]
[1723867542411,1.44050573,59254.0,59253.0,0.0714064]
[1723867542611,1.09022138,59254.0,59253.0,0.0714064]
[1723867543025,1.24210649,59254.0,59253.0,0.0714064]
[1723867543438,1.24213713,59254.0,59253.0,0.0714064]
[1723867543642,1.59529448,59254.0,59253.0,0.0714064]
[1723867543972,1.44337836,59254.0,59253.0,0.0714064]
[1723867544583,1.6179329,59254.0,59253.0,0.0109064]
[1723867544988,0.99261154,59254.0,59253.0,0.0109064]
[1723867545360,1.43507947,59254.0,59253.0,0.0109064]
[1723867545561,1.43516839,59254.0,59253.0,0.0109064]
[1723867545996,1.78580819,59254.0,59253.0,0.0109064]
[1723867547855,1.6148744,59254.0,59253.0,0.0109064]
[1723867548844,1.6118744,59254.0,59253.0,0.0109064]
[1723867551750,1.6909744,59254.0,59253.0,0.0109064]
[1723867551954,1.96479423,59254.0,59253.0,0.0109064]
[1723867555141,1.96408384,59254.0,59253.0,0.0109064]
[1723867556640,1.7144293,59254.0,59253.0,0.0109064]
[1723867557482,1.34500947,59254.0,59253.0,0.0760064]
[1723867557721,1.16580239,59254.0,59253.0,0.0760064]
[1723867557877,0.8957759,59254.0,59253.0,0.0760064]
[1723867558047,0.8957759,59254.0,59253.0,0.1582064]
[1723867558464,0.9903759,59254.0,59253.0,0.1582064]
[1723867558667,0.8957759,59254.0,59253.0,0.1582064]
[1723867559038,0.72467724,59254.0,59253.0,0.1582064]
[1723867559372,0.453434,59254.0,59253.0,0.1582064]
[1723867559578,0.32225475,59254.0,59253.0,0.1582064]
[1723867559783,0.32225475,59254.0,59253.0,0.29342357]
[1723867559784,0.29225475,59254.0,59253.0,0.29342357]
[1723867559963,0.29225475,59254.0,59253.0,0.56345157]
[1723867560165,0.41896542,59254.0,59253.0,0.93347957]
[1723867560995,0.0184,59254.0,59253.0,0.93347957]
[1723867561203,0.09442201,59254.0,59253.0,0.66345157]
[1723867561615,0.06905195,59254.0,59253.0,0.66345157]
[1723867562188,0.06905195,59254.0,59253.0,0.93347957]
[1723867562565,0.06905195,59254.0,59253.0,0.66345157]
[1723867562760,0.0184,59254.0,59253.0,0.66345157]
[1723867563579,0.05065195,59256.0,59255.0,0.552328]
[1723867563784,0.05065195,59256.0,59255.0,0.92255017]
[1723867564013,0.07602201,59257.0,59256.0,1.09255217]
[1723867564217,0.05061845,59262.0,59261.0,0.269992]
[1723867564371,0.05061845,59262.0,59256.0,0.10020317]
[1723867564372,0.05061845,59265.0,59263.0,0.1473]
[1723867564580,0.05144345,59266.0,59265.0,0.13518917]
[1723867564780,0.05144345,59266.0,59265.0,0.55246217]
[1723867565193,0.05144345,59266.0,59265.0,0.28248917]
[1723867565436,0.000825,59266.0,59265.0,0.28248917]
[1723867565640,0.000825,59266.0,59265.0,0.14750317]
[1723867566308,0.000825,59266.0,59265.0,0.28248917]
[1723867566717,0.00062192,59266.0,59265.0,0.28248917]
[1723867566912,0.00062192,59266.0,59265.0,0.28348917]
[1723867567314,0.00062192,59266.0,59265.0,0.1483]